fUSD/lending_fUSD_20260106
["ID","MTS","AMOUNT","RATE_DAILY","PERIOD"]
[400598420,1767738655436,-251.31162,0.000421,120]
[400598421,1767738655446,-251.31162,0.000421,120]
[400598422,1767738655455,-1820.845269,0.000421,120]
[400598423,1767738655464,-1684.885026,0.000421,120]
[400598424,1767738655473,-251.31162,0.000421,120]
[400598425,1767738655483,-1820.845269,0.000421,120]
[400598426,1767738655492,-1684.885026,0.000421,120]
[400598427,1767738655501,-251.31162,0.000421,120]
[400598428,1767738655510,-1820.845269,0.000421,120]
[400598429,1767738655664,-1684.885026,0.000421,120]
[400598430,1767738655674,-1820.845269,0.000421,120]
[400598431,1767738655686,-1684.885026,0.000421,120]
[400598432,1767738655696,-806.716922,0.000421,120]
[400598433,1767738655706,-806.716922,0.000421,120]
[400598434,1767738655716,-224.698206,0.000421,120]
[400598435,1767738655725,-806.716922,0.000421,120]
[400598436,1767738655734,-806.716922,0.000421,120]
[400598437,1767738655744,-985.481451,0.000421,120]
[400598438,1767738655753,-985.481451,0.000421,120]
[400598439,1767738655762,-997.029049,0.000421,120]
[400598440,1767738655771,-985.481451,0.000421,120]
[400598441,1767738655780,-997.029049,0.000421,120]
[400598442,1767738655789,-985.481451,0.000421,120]
[400598443,1767738655798,-997.029049,0.000421,120]
[400598444,1767738655807,-391.466354,0.000421,120]
[400598445,1767738655816,-997.029049,0.000421,120]
[400598446,1767738655826,-391.466354,0.000421,120]
[400598447,1767738655836,-391.466354,0.000421,120]
[400598448,1767738655846,-391.466354,0.000421,120]
[400598449,1767738655855,-980.547522,0.000421,120]
[400598450,1767738655865,-980.547522,0.000421,120]
[400598451,1767738655875,-980.547522,0.000421,120]
[400598452,1767738655884,-980.547522,0.000421,120]
[400598453,1767738655894,-151.0,0.000421,120]
[400598454,1767738655905,-594.783126,0.000421,120]
[400598455,1767738655915,-151.0,0.000421,120]
[400598456,1767738655925,-151.0,0.000421,120]
[400598457,1767738655934,-594.783126,0.000421,120]
[400598458,1767738655944,-358.665808,0.000421,120]
[400598459,1767738655952,-594.783126,0.000421,120]
[400598460,1767738655961,-358.665808,0.000421,120]
[400598461,1767738655970,-264.32113,0.000421,120]
[400598462,1767738655979,-594.783126,0.000421,120]
[400598463,1767738655988,-358.665808,0.000421,120]
[400598464,1767738655997,-264.32113,0.000421,120]
[400598465,1767738656007,-358.665808,0.000421,120]
[400598466,1767738656016,-264.32113,0.000421,120]
[400598467,1767738656028,-264.32113,0.000421,120]
[400598468,1767738656039,-151.0,0.000421,120]
[400598469,1767738656055,-210.903652,0.000421,120]
[400598470,1767738656066,-700.0,0.00042121,60]
[400598471,1767738656077,-3000.0,0.00042121,60]
[400598472,1767738656087,-920.62839814,0.00042137,30]
[400598473,1767738656097,-482.51,0.00042137,30]
[400598474,1767738656106,-833.0,0.00042163,16]
[400598475,1767738656115,-833.0,0.00042168,16]
[400598476,1767738656124,-833.0,0.00042181,16]
[400598477,1767738656133,-833.0,0.00042181,16]
[400598478,1767738656143,-4041.2752086,0.00042183,7]
[400598479,1767738656152,-833.0,0.00042191,16]
[400598480,1767738656162,-999.0,0.00042191,120]
[400598481,1767738656171,-600.0,0.00042192,120]
[400598482,1767738656180,-1999.0,0.00042192,30]
[400598483,1767738656190,-833.0,0.00042192,16]
[400598484,1767738656199,-152.0,0.000422,120]
[400598485,1767738656208,-5609.20042334,0.000422,2]
[400598486,1767738656217,-833.0,0.00042206,16]
[400598487,1767738656227,-920.62839814,0.00042301,30]
[400598488,1767738656236,-466.43,0.00042329,30]
[400598489,1767738656246,-466.43,0.00042329,30]
[400598490,1767738656256,-466.43,0.00042329,30]
[400598491,1767738656265,-166.66,0.00042335,30]
[400598492,1767738656275,-11844.77875623,0.00042347,5]
[400598493,1767738656286,-500.0,0.00042356,60]
[400598494,1767738656295,-500.0,0.00042356,60]
[400598495,1767738656305,-1353.9,0.00042391,30]
[400598496,1767738656315,-800.0,0.00042395,60]
[400598497,1767738656324,-229.07136963,0.00042397,30]
[400598498,1767738656333,-1307.44549202,0.000424,10]
[400598499,1767738656342,-2041.14646952,0.00042402,30]
[400598500,1767738656351,-1262.0,0.00042462,2]
[400598501,1767738656361,-430.0,0.00042462,2]
[400598502,1767738656370,-914.0,0.00042462,2]
[400598503,1767738656379,-1200.0,0.00042462,2]
[400598504,1767738656388,-612.062,0.00042462,2]
[400598505,1767738656397,-1329.0,0.00042462,2]
[400598506,1767738656406,-2435.0,0.00042462,2]
[400598507,1767738656415,-500.0,0.00042465,120]
[400598508,1767738656425,-500.0,0.00042465,120]
[400598509,1767738656435,-500.0,0.00042465,120]
[400598510,1767738656444,-500.0,0.00042465,120]
[400598511,1767738656454,-500.0,0.00042465,120]
[400598512,1767738656464,-500.0,0.00042465,120]
[400598513,1767738656473,-500.0,0.00042465,120]
[400598514,1767738656482,-500.0,0.00042465,120]
[400598515,1767738656492,-500.0,0.00042465,120]
[400598516,1767738656501,-500.0,0.00042465,120]
[400598517,1767738656511,-500.0,0.00042465,120]
[400598518,1767738656520,-500.0,0.00042465,120]
[400598519,1767738656534,-205.461604,0.00042465,120]
[400598520,1767738656551,-920.62839814,0.00042466,30]
[400598521,1767738656568,-162.0,0.00042489,16]
[400598522,1767738656587,-833.0,0.00042489,16]
[400598523,1767738656601,-160.0,0.000425,44]
[400598524,1767738656617,-160.0,0.000425,44]
[400598525,1767738656638,-9366.7158552,0.000425,7]
[400598526,1767738656659,-833.0,0.00042501,16]
[400598527,1767738656676,-911.64,0.00042504,120]
[400598528,1767738656693,-6331.12699308,0.00042509,14]
[400598529,1767738656712,-6331.12699299,0.00042509,14]
[400598530,1767738656728,-6331.12699299,0.00042509,14]
[400598531,1767738656741,-6331.12699299,0.00042509,14]
[400598532,1767738656760,-6331.12699299,0.00042509,14]
[400598533,1767738656772,-6331.12699299,0.00042509,14]
[400598534,1767738656786,-6331.12699299,0.00042509,14]
[400598535,1767738656801,-6331.12699299,0.00042509,14]
[400598536,1767738656815,-6331.12699299,0.00042509,14]
[400598537,1767738656831,-6331.12699299,0.00042509,14]
[400598538,1767738656850,-6331.12699299,0.00042509,14]
[400598539,1767738656865,-6331.12699299,0.00042509,14]
[400598540,1767738656881,-6331.12699299,0.00042509,14]
[400598541,1767738656895,-6331.12699299,0.00042509,14]
[400598542,1767738656910,-482.51,0.00042521,30]
[400598543,1767738656925,-661.18,0.00042521,30]
[400598544,1767738656939,-661.18,0.00042521,30]
[400598545,1767738656953,-482.51,0.00042521,30]
[400598546,1767738656968,-482.51,0.00042521,30]
[400598547,1767738656984,-661.18,0.00042521,30]
[400598548,1767738656998,-661.18,0.00042521,30]
[400598549,1767738657013,-482.51,0.00042521,30]
[400598550,1767738657027,-661.18,0.00042521,30]
[400598551,1767738657041,-482.51,0.00042521,30]
[400598552,1767738657055,-1129.92,0.00042521,30]
[400598553,1767738657070,-482.51,0.00042521,30]
[400598554,1767738657084,-661.18,0.00042521,30]
[400598555,1767738657100,-661.18,0.00042521,30]
[400598556,1767738657114,-482.51,0.00042521,30]
[400598557,1767738657129,-482.51,0.00042521,30]
[400598558,1767738657144,-661.18,0.00042521,30]
[400598559,1767738657159,-833.0,0.00042522,16]
[400598560,1767738657173,-500.0,0.0004263,90]
[400598561,1767738657188,-500.0,0.0004263,90]
[400598562,1767738657202,-920.62839814,0.0004263,30]
[400598563,1767738657217,-157.0,0.00042658,30]
[400598564,1767738657231,-614.14,0.00042658,30]
[400598565,1767738657246,-207.71,0.00042658,30]
[400598566,1767738657261,-171.25,0.00042658,30]
[400598567,1767738657276,-150.0,0.00042658,30]
[400598568,1767738657291,-393.43,0.00042658,30]
[400598569,1767738657305,-150.0,0.00042658,30]
[400598570,1767738657320,-150.0,0.00042658,30]
[400598571,1767738657334,-171.25,0.00042658,30]
[400598572,1767738657348,-555.93,0.00042658,30]
[400598573,1767738657362,-171.25,0.00042658,30]
[400598574,1767738657377,-555.93,0.00042658,30]
[400598575,1767738657392,-178.99,0.00042658,30]
[400598576,1767738657406,-150.0,0.00042658,30]
[400598577,1767738657421,-466.43,0.00042658,30]
[400598578,1767738657436,-150.0,0.00042658,30]
[400598579,1767738657451,-555.93,0.00042658,30]
[400598580,1767738657465,-178.99,0.00042658,30]
[400598581,1767738657479,-171.25,0.00042658,30]
[400598582,1767738657493,-150.0,0.00042658,30]
[400598583,1767738657508,-466.43,0.00042658,30]
[400598584,1767738657522,-178.99,0.00042658,30]
[400598585,1767738657536,-555.93,0.00042658,30]
[400598586,1767738657550,-466.43,0.00042658,30]
[400598587,1767738657564,-171.25,0.00042658,30]
[400598588,1767738657578,-150.0,0.00042658,30]
[400598589,1767738657592,-178.99,0.00042658,30]
[400598590,1767738657606,-340.1,0.00042658,30]
[400598591,1767738657621,-555.93,0.00042658,30]
[400598592,1767738657639,-465.23,0.00042658,30]
[400598593,1767738657653,-303.34,0.00042658,30]
[400598594,1767738657670,-178.99,0.00042658,30]
[400598595,1767738657687,-150.0,0.00042658,30]
[400598596,1767738657701,-150.0,0.00042658,30]
[400598597,1767738657715,-555.93,0.00042658,30]
[400598598,1767738657730,-152.56,0.00042658,30]
[400598599,1767738657745,-155.21,0.00042658,30]
[400598600,1767738657759,-152.45,0.00042658,30]
[400598601,1767738657774,-171.25,0.00042658,30]
[400598602,1767738657789,-555.93,0.00042658,30]
[400598603,1767738657805,-150.0,0.00042658,30]
[400598604,1767738657821,-178.99,0.00042658,30]
[400598605,1767738657832,-171.25,0.00042658,30]
[400598606,1767738657841,-150.0,0.00042658,30]
[400598607,1767738657852,-150.0,0.00042658,30]
[400598608,1767738657863,-150.0,0.00042658,30]
[400598609,1767738657872,-178.99,0.00042658,30]
[400598610,1767738658090,-150.0,0.00042658,30]
[400598611,1767738658104,-150.0,0.00042658,30]
[400598612,1767738658113,-171.25,0.00042658,30]
[400598613,1767738658122,-555.93,0.00042658,30]
[400598614,1767738658132,-700.0,0.00042669,60]
[400598615,1767738658142,-3000.0,0.00042669,60]
[400598616,1767738658152,-806.56408697,0.000427,30]
[400598617,1767738658161,-152.0,0.000427,120]
[400598618,1767738658170,-300.0,0.00042721,2]
[400598619,1767738658180,-600.0,0.0004274,120]
[400598620,1767738658189,-250.0,0.0004274,10]
[400598621,1767738658198,-163.25248251,0.0004274,120]
[400598622,1767738658207,-507.465941,0.0004274,10]
[400598623,1767738658217,-502.0,0.00042766,16]
[400598624,1767738658226,-300.0,0.00042783,2]
[400598625,1767738658235,-300.0,0.00042791,2]
[400598626,1767738658244,-920.62839814,0.00042795,30]
[400598627,1767738658254,-162.47850535,0.000428,120]
[400598628,1767738658263,-2131.45675984,0.000428,120]
[400598629,1767738658272,-833.0,0.00042804,16]
[400598630,1767738658281,-300.0,0.00042804,2]
[400598631,1767738658290,-300.0,0.00042809,2]
[400598632,1767738658299,-152.53735496,0.00042815,14]
[400598633,1767738658308,-833.0,0.00042827,16]
[400598634,1767738658318,-300.0,0.00042833,2]
[400598635,1767738658327,-833.0,0.00042838,16]
[400598636,1767738658336,-300.0,0.00042838,2]
[400598637,1767738658346,-833.0,0.00042842,16]
[400598638,1767738658355,-162.0,0.00042844,16]
[400598639,1767738658365,-300.0,0.00042846,2]
[400598640,1767738658374,-833.0,0.00042848,16]
[400598641,1767738658383,-833.0,0.00042848,16]
[400598642,1767738658393,-300.0,0.00042862,2]
[400598643,1767738658402,-298.26089446,0.00042862,2]
[400598644,1767738658411,-300.0,0.0004287,2]
[400598645,1767738658421,-300.070619,0.0004288,113]
[400598646,1767738658430,-300.0,0.0004289,2]
[400598647,1767738658440,-300.0,0.00042893,2]
[400598648,1767738658449,-300.0,0.00042896,2]
[400598649,1767738658458,-100123.57076776,0.000429,7]
[400598650,1767738658467,-241.27909275,0.000429,30]
[400598651,1767738658477,-3018.76361935,0.000429,30]
[400598652,1767738658486,-500.0,0.00042904,100]
[400598653,1767738658495,-500.0,0.00042904,100]
[400598654,1767738658504,-151.0,0.00042904,120]
[400598655,1767738658517,-151.0,0.00042904,120]
[400598656,1767738658526,-198.724959,0.00042904,120]
[400598657,1767738658535,-300.0,0.00042913,2]
[400598658,1767738658546,-300.0,0.00042922,2]
[400598659,1767738658556,-300.0,0.00042923,2]
[400598660,1767738658565,-373.21,0.00042932,30]
[400598661,1767738658575,-1081.82651881,0.00042933,30]
[400598662,1767738658584,-439.29698496,0.00042933,30]
[400598663,1767738658593,-581.45000001,0.00042933,30]
[400598664,1767738658603,-300.0,0.00042935,2]
[400598665,1767738658612,-300.0,0.00042935,2]
[400598666,1767738658620,-300.0,0.00042942,2]
[400598667,1767738658633,-800.0,0.00042943,60]
[400598668,1767738658642,-300.0,0.00042954,2]
[400598669,1767738658652,-920.62839814,0.00042959,30]
[400598670,1767738658662,-300.0,0.00042966,2]
[400598671,1767738658671,-300.0,0.00042968,2]
[400598672,1767738658680,-300.0,0.0004298,2]
[400598673,1767738658689,-300.0,0.00042988,2]
[400598674,1767738658698,-300.0,0.00042988,2]
[400598675,1767738658709,-300.0,0.00042989,2]
[400598676,1767738658718,-1009.32108075,0.00043,30]
[400598677,1767738658727,-2282.7389,0.00043,120]
[400598678,1767738658736,-879.64,0.00043,120]
[400598679,1767738658745,-500.0,0.00043,25]
[400598680,1767738658755,-486.0,0.00043,30]
[400598681,1767738658764,-152.0,0.00043,120]
[400598682,1767738658773,-214.0,0.00043,7]
[400598683,1767738658783,-1033.6,0.00043,14]
[400598684,1767738658792,-171.0,0.00043,90]
[400598685,1767738658801,-400.0,0.00043,90]
[400598686,1767738658811,-354.68959988,0.00043,120]
[400598687,1767738658819,-2000.0,0.00043,120]
[400598688,1767738658829,-1040.62,0.00043,30]
[400598689,1767738658839,-151.34564295,0.00043,120]
[400598690,1767738658848,-155.99460706,0.00043,120]
[400598691,1767738658857,-1018.0,0.00043,30]
[400598692,1767738658867,-168.0,0.00043,90]
[400598693,1767738658876,-300.0,0.00043003,2]
[400598694,1767738658886,-400.0,0.00043014,90]
[400598695,1767738658895,-300.0,0.00043017,2]
[400598696,1767738658905,-300.0,0.00043019,2]
[400598697,1767738658914,-300.0,0.00043043,2]
[400598698,1767738658923,-1726.9772,0.0004305,120]
[400598699,1767738658934,-1726.9772,0.0004305,120]
[400598700,1767738658944,-1726.9772,0.0004305,120]
[400598701,1767738658953,-1726.9772,0.0004305,120]
[400598702,1767738658963,-1726.9772,0.0004305,120]
[400598703,1767738658973,-300.0,0.00043052,2]
[400598704,1767738658982,-300.0,0.00043053,2]
[400598705,1767738658991,-299.73918347,0.00043053,120]
[400598706,1767738659000,-300.0,0.00043055,2]
[400598707,1767738659009,-300.0,0.00043056,2]
[400598708,1767738659018,-300.0,0.00043068,2]
[400598709,1767738659027,-500.0,0.00043068,120]
[400598710,1767738659036,-303.37,0.00043068,120]
[400598711,1767738659045,-300.0,0.00043069,2]
[400598712,1767738659055,-300.0,0.00043082,2]
[400598713,1767738659063,-300.0,0.00043086,2]
[400598714,1767738659073,-1353.9,0.0004309,30]
[400598715,1767738659082,-300.0,0.00043099,2]
[400598716,1767738659092,-2081.8855775,0.000431,120]
[400598717,1767738659101,-300.0,0.00043102,2]
[400598718,1767738659110,-300.0,0.00043103,2]
[400598719,1767738659119,-300.0,0.00043122,2]
[400598720,1767738659128,-920.62839814,0.00043123,30]
[400598721,1767738659138,-300.0,0.00043135,2]
[400598722,1767738659147,-833.0,0.00043136,16]
[400598723,1767738659156,-300.0,0.00043138,2]
[400598724,1767738659166,-162.0,0.00043147,16]
[400598725,1767738659175,-300.0,0.0004315,2]
[400598726,1767738659183,-300.0,0.00043152,2]
[400598727,1767738659192,-2500.0,0.00043157,120]
[400598728,1767738659201,-2500.0,0.00043157,120]
[400598729,1767738659211,-2500.0,0.00043157,120]
[400598730,1767738659220,-2500.0,0.00043157,120]
[400598731,1767738659229,-300.0,0.00043158,2]
[400598732,1767738659239,-833.0,0.00043162,16]
[400598733,1767738659248,-833.0,0.00043162,16]
[400598734,1767738659258,-300.0,0.00043162,2]
[400598735,1767738659267,-833.0,0.00043164,16]
[400598736,1767738659277,-892.0,0.00043165,16]
[400598737,1767738659286,-833.0,0.00043168,16]
[400598738,1767738659296,-300.0,0.00043169,2]
[400598739,1767738659305,-300.0,0.0004317,2]
[400598740,1767738659314,-500.0,0.00043173,30]
[400598741,1767738659324,-166.66,0.00043173,30]
[400598742,1767738659334,-300.0,0.00043179,2]
[400598743,1767738659344,-300.0,0.0004318,2]
[400598744,1767738659354,-300.0,0.00043186,2]
[400598745,1767738659363,-300.0,0.00043192,2]
[400598746,1767738659373,-500.0,0.00043199,30]
[400598747,1767738659382,-500.0,0.00043199,30]
[400598748,1767738659391,-500.0,0.00043199,30]
[400598749,1767738659400,-500.0,0.00043199,30]
[400598750,1767738659410,-500.0,0.00043199,30]
[400598751,1767738659420,-500.0,0.00043199,30]
[400598752,1767738659429,-500.0,0.00043199,30]
[400598753,1767738659438,-734.0,0.00043199,30]
[400598754,1767738659448,-203.37937596,0.000432,120]
[400598755,1767738659458,-300.0,0.00043208,2]
[400598756,1767738659469,-300.0,0.00043209,2]
[400598757,1767738659478,-300.0,0.0004321,2]
[400598758,1767738659487,-25000.0,0.00043214,15]
[400598759,1767738659497,-150.0,0.00043215,14]
[400598760,1767738659506,-700.0,0.00043217,60]
[400598761,1767738659515,-3000.0,0.00043217,60]
[400598762,1767738659526,-300.0,0.00043222,2]
[400598763,1767738659535,-25000.0,0.00043223,15]
[400598764,1767738659544,-300.0,0.0004323,2]
[400598765,1767738659553,-25000.0,0.00043232,15]
[400598766,1767738659562,-25000.0,0.0004324,15]
[400598767,1767738659571,-150.1,0.00043248,2]
[400598768,1767738659581,-150.1,0.00043248,2]
[400598769,1767738659591,-150.1,0.00043248,2]
[400598770,1767738659600,-163.41007833,0.00043248,2]
[400598771,1767738659610,-25000.0,0.00043249,15]
[400598772,1767738659619,-300.0,0.00043256,2]
[400598773,1767738659630,-25000.0,0.00043258,15]
[400598774,1767738659642,-300.0,0.0004326,2]
[400598775,1767738659651,-25000.0,0.00043267,15]
[400598776,1767738659660,-21973.59521984,0.00043267,15]
[400598777,1767738659671,-1541.521127,0.00043267,120]
[400598778,1767738659683,-187.952465,0.00043267,120]
[400598779,1767738659692,-1541.521127,0.00043267,120]
[400598780,1767738659705,-152.956085,0.00043267,120]
[400598781,1767738659715,-1541.521127,0.00043267,120]
[400598782,1767738659724,-763.352621,0.00043267,120]
[400598783,1767738659734,-1541.521127,0.00043267,120]
[400598784,1767738659744,-763.352621,0.00043267,120]
[400598785,1767738659753,-763.352621,0.00043267,120]
[400598786,1767738659764,-330.732476,0.00043267,120]
[400598787,1767738659773,-763.352621,0.00043267,120]
[400598788,1767738659782,-330.732476,0.00043267,120]
[400598789,1767738659792,-151.0,0.00043267,10]
[400598790,1767738659802,-544.53238,0.00043267,120]
[400598791,1767738659811,-330.732476,0.00043267,120]
[400598792,1767738659821,-330.732476,0.00043267,120]
[400598793,1767738659830,-151.0,0.00043267,30]
[400598794,1767738659839,-544.53238,0.00043267,120]
[400598795,1767738659847,-151.0,0.00043267,120]
[400598796,1767738659857,-544.53238,0.00043267,120]
[400598797,1767738659866,-544.53238,0.00043267,120]
[400598798,1767738659875,-908.556844,0.00043267,28]
[400598799,1767738659884,-908.556844,0.00043267,28]
[400598800,1767738659893,-908.556844,0.00043267,28]
[400598801,1767738659902,-908.556844,0.00043267,28]
[400598802,1767738659911,-151.0,0.00043267,120]
[400598803,1767738659922,-151.0,0.00043267,5]
[400598804,1767738659940,-192.660341,0.00043267,120]
[400598805,1767738659951,-156.715141,0.00043267,120]
[400598806,1767738659960,-156.715141,0.00043267,120]
[400598807,1767738659970,-156.715141,0.00043267,120]
[400598808,1767738659981,-156.715141,0.00043267,120]
[400598809,1767738659992,-1510.069941,0.00043267,120]
[400598810,1767738660001,-1510.069941,0.00043267,120]
[400598811,1767738660011,-1510.069941,0.00043267,120]
[400598812,1767738660020,-1510.069941,0.00043267,120]
[400598813,1767738660029,-151.0,0.00043267,120]
[400598814,1767738660039,-300.0,0.00043269,2]
[400598815,1767738660048,-300.0,0.00043269,2]
[400598816,1767738660058,-300.0,0.00043271,2]
[400598817,1767738660068,-999.0,0.00043287,120]
[400598818,1767738660078,-600.0,0.00043288,120]
[400598819,1767738660087,-300.0,0.00043288,2]
[400598820,1767738660096,-232.48757784,0.00043298,120]
[400598821,1767738660106,-2346.47,0.000433,120]
[400598822,1767738660115,-300.0,0.00043303,2]
[400598823,1767738660124,-300.0,0.00043306,2]
[400598824,1767738660134,-300.0,0.00043309,2]
[400598825,1767738660143,-300.0,0.0004331,2]
[400598826,1767738660153,-300.0,0.00043311,2]
[400598827,1767738660162,-300.0,0.00043312,2]
[400598828,1767738660171,-300.0,0.00043324,2]
[400598829,1767738660180,-300.0,0.00043325,2]
[400598830,1767738660189,-2053.97453753,0.00043335,120]
[400598831,1767738660199,-1284.93,0.00043336,30]
[400598832,1767738660208,-1284.93,0.00043336,30]
[400598833,1767738660218,-1284.93,0.00043336,30]
[400598834,1767738660227,-1284.93,0.00043336,30]
[400598835,1767738660237,-300.0,0.0004334,2]
[400598836,1767738660246,-300.0,0.00043348,2]
[400598837,1767738660256,-300.0,0.00043351,2]
[400598838,1767738660266,-300.0,0.00043355,2]
[400598839,1767738660276,-300.0,0.00043359,2]
[400598840,1767738660286,-300.0,0.00043361,2]
[400598841,1767738660295,-300.0,0.00043362,2]
[400598842,1767738660307,-300.0,0.00043368,2]
[400598843,1767738660317,-300.0,0.00043368,2]
[400598844,1767738660327,-300.0,0.00043373,2]
[400598845,1767738660338,-300.0,0.00043379,2]
[400598846,1767738660348,-300.0,0.00043379,2]
[400598847,1767738660359,-10000.0,0.00043379,2]
[400598848,1767738660369,-4964.0,0.00043386,7]
[400598849,1767738660379,-300.0,0.00043395,2]
[400598850,1767738660389,-2000.0,0.00043399,120]
[400598851,1767738660398,-300.0,0.00043399,2]
[400598852,1767738660408,-150.0,0.000434,27]
[400598853,1767738660417,-15480.11203971,0.000434,30]
[400598854,1767738660427,-706.05,0.000434,120]
[400598855,1767738660438,-2433.22646,0.000434,120]
[400598856,1767738660448,-150.0,0.000434,66]
[400598857,1767738660458,-150.0,0.000434,27]
[400598858,1767738660468,-152.0,0.000434,120]
[400598859,1767738660478,-253.0,0.000434,42]
[400598860,1767738660487,-187.52,0.000434,48]
[400598861,1767738660497,-201.573526,0.000434,25]
[400598862,1767738660506,-300.0,0.00043403,2]
[400598863,1767738660515,-300.0,0.00043404,2]
[400598864,1767738660524,-167.99433605,0.00043409,120]
[400598865,1767738660534,-167.87682571,0.00043409,11]
[400598866,1767738660542,-344.39263038,0.00043409,120]
[400598867,1767738660552,-6331.12699299,0.00043409,15]
[400598868,1767738660561,-188.35701994,0.00043409,2]
[400598869,1767738660570,-3907.78036058,0.00043409,2]
[400598870,1767738660580,-300.0,0.0004341,2]
[400598871,1767738660589,-300.0,0.00043412,2]
[400598872,1767738660599,-300.0,0.00043417,2]
[400598873,1767738660608,-300.0,0.00043435,2]
[400598874,1767738660618,-1000.0,0.0004345,120]
[400598875,1767738660628,-300.0,0.00043452,2]
[400598876,1767738660642,-2500.0,0.00043457,120]
[400598877,1767738660651,-2500.0,0.00043457,120]
[400598878,1767738660662,-696.14216422,0.00043457,120]
[400598879,1767738660672,-300.0,0.00043457,2]
[400598880,1767738660682,-1000.0,0.0004346,120]
[400598881,1767738660691,-300.0,0.00043461,2]
[400598882,1767738660701,-300.0,0.00043462,2]
[400598883,1767738660711,-300.0,0.00043466,2]
[400598884,1767738660885,-400.0,0.0004347,3]
[400598885,1767738660897,-400.0,0.0004347,3]
[400598886,1767738660906,-704.85854174,0.0004347,3]
[400598887,1767738660916,-1000.0,0.0004347,120]
[400598888,1767738660925,-500.0,0.00043472,30]
[400598889,1767738660934,-500.0,0.00043473,30]
[400598890,1767738660943,-500.0,0.00043473,30]
[400598891,1767738660952,-500.0,0.00043473,30]
[400598892,1767738660961,-500.0,0.00043473,30]
[400598893,1767738660971,-500.0,0.00043473,30]
[400598894,1767738660980,-500.0,0.00043473,30]
[400598895,1767738660989,-500.0,0.00043473,30]
[400598896,1767738660998,-500.0,0.00043473,30]
[400598897,1767738661007,-500.0,0.00043473,30]
[400598898,1767738661017,-500.0,0.00043473,30]
[400598899,1767738661028,-500.0,0.00043473,30]
[400598900,1767738661037,-500.0,0.00043473,30]
[400598901,1767738661047,-219.74812993,0.00043473,30]
[400598902,1767738661058,-1000.0,0.00043475,120]
[400598903,1767738661067,-2000.0,0.00043475,16]
[400598904,1767738661076,-250.0,0.00043476,45]
[400598905,1767738661085,-300.0,0.00043477,2]
[400598906,1767738661095,-482.51,0.00043479,30]
[400598907,1767738661104,-482.51,0.00043479,30]
[400598908,1767738661113,-482.51,0.00043479,30]
[400598909,1767738661122,-555.93,0.00043479,30]
[400598910,1767738661131,-555.93,0.00043479,30]
[400598911,1767738661140,-482.51,0.00043479,30]
[400598912,1767738661149,-482.51,0.00043479,30]
[400598913,1767738661158,-482.51,0.00043479,30]
[400598914,1767738661168,-482.51,0.00043479,30]
[400598915,1767738661177,-482.51,0.00043479,30]
[400598916,1767738661186,-482.51,0.00043479,30]
[400598917,1767738661195,-482.51,0.00043479,30]
[400598918,1767738661204,-482.51,0.00043479,30]
[400598919,1767738661213,-482.51,0.00043479,30]